fUST/lending_fUST_20250214
["ID","MTS","AMOUNT","RATE_DAILY","PERIOD"]
[353043802,1739518239392,-508.0251981,0.00013792,2]
[353043803,1739518239403,-500.0,0.00013792,2]
[353043804,1739518239415,-500.0,0.00013792,2]
[353043805,1739518239425,-500.0,0.00013792,2]
[353043806,1739518239435,-500.0,0.00013792,2]
[353043807,1739518239444,-500.0,0.00013792,2]
[353043808,1739518239454,-500.0,0.00013792,2]
[353043809,1739518239464,-500.0,0.00013792,2]
[353043810,1739518239473,-500.0,0.00013792,2]
[353043811,1739518239483,-500.0,0.00013792,2]
[353043812,1739518239493,-579.2424811,0.00013792,2]
[353043813,1739518239507,-500.0,0.00013792,2]
[353043814,1739518239516,-500.0,0.00013792,2]
[353043815,1739518239526,-500.0,0.00013792,2]
[353043816,1739518239535,-3000.0,0.00013792,30]
[353043817,1739518239549,-500.0,0.00013792,2]
[353043818,1739518239560,-500.0,0.00013792,2]
[353043819,1739518239570,-500.0,0.00013792,2]
[353043820,1739518239580,-500.0,0.00013792,2]
[353043821,1739518239590,-500.0,0.00013792,2]
[353043822,1739518239600,-500.48068869,0.00013792,2]
[353043823,1739518239612,-500.0,0.00013792,2]
[353043824,1739518239621,-500.0,0.00013792,2]
[353043825,1739518239634,-500.0,0.00013792,2]
[353043826,1739518239644,-500.0,0.00013792,2]
[353043827,1739518239657,-500.58449297,0.00013792,2]
[353043829,1739518239666,-500.0,0.00013792,2]
[353043830,1739518239676,-500.0,0.00013792,2]
[353043831,1739518239686,-500.92216524,0.00013792,2]
[353043832,1739518239695,-500.0,0.00013792,2]
[353043833,1739518239705,-500.0,0.00013792,2]
[353043835,1739518239714,-500.0,0.00013792,2]
[353043837,1739518239725,-500.0,0.00013792,2]
[353043838,1739518239735,-500.0,0.00013792,2]
[353043839,1739518239744,-581.96094277,0.00013792,2]
[353043840,1739518239753,-500.0,0.00013792,2]
[353043841,1739518239762,-500.0,0.00013792,2]
[353043842,1739518239772,-500.0,0.00013792,2]
[353043843,1739518239781,-500.0,0.00013792,2]
[353043844,1739518239791,-303.73947502,0.00013792,2]
[353043845,1739518239801,-500.0,0.00013792,2]
[353043846,1739518239812,-500.0,0.00013792,2]
[353043847,1739518239822,-167.58260793,0.00013792,2]
[353043848,1739518239831,-500.0,0.00013792,2]
[353043849,1739518239841,-500.0,0.00013792,2]
[353043850,1739518239851,-501.82769055,0.00013792,2]
[353043851,1739518239862,-500.0,0.00013792,2]
[353043852,1739518239872,-502.59886123,0.00013792,2]
[353043853,1739518239883,-481.05243776,0.00013792,2]
[353043854,1739518239893,-500.0,0.00013792,2]
[353043855,1739518239902,-500.0,0.00013792,2]
[353043856,1739518239914,-500.0,0.00013792,2]
[353043857,1739518239922,-500.0,0.00013792,2]
[353043859,1739518239931,-500.0,0.00013792,2]
[353043860,1739518239941,-500.0,0.00013792,2]
[353043861,1739518239950,-322.19477127,0.00013792,2]
[353043863,1739518239960,-500.0,0.00013792,2]
[353043864,1739518239969,-500.0,0.00013792,2]
[353043865,1739518239979,-500.0,0.00013792,2]
[353043866,1739518239988,-500.0,0.00013792,2]
[353043867,1739518239997,-500.0,0.00013792,2]
[353043868,1739518240007,-500.0,0.00013792,2]
[353043869,1739518240016,-500.0,0.00013792,2]
[353043870,1739518240026,-1000.0,0.00013792,2]
[353043871,1739518240036,-470.35151719,0.00013792,2]
[353043872,1739518240047,-500.0,0.00013792,2]
[353043873,1739518240058,-505.14591115,0.00013792,2]
[353043874,1739518240067,-274.33600676,0.00013792,2]
[353043875,1739518240077,-502.80877126,0.00013792,2]
[353043876,1739518240086,-500.0,0.00013792,2]
[353043877,1739518240096,-407.96857615,0.00013792,2]
[353043879,1739518240106,-500.0,0.00013792,2]
[353043880,1739518240116,-502.47665569,0.00013792,2]
[353043881,1739518240126,-502.69379632,0.00013792,2]
[353043882,1739518240137,-343.16982641,0.00013792,2]
[353043883,1739518240146,-500.0,0.00013792,2]
[353043884,1739518240157,-167.96766142,0.00013792,2]
[353043885,1739518240166,-500.0,0.00013792,2]
[353043886,1739518240176,-500.0,0.00013792,2]
[353043887,1739518240186,-500.0,0.00013793,2]
[353043888,1739518240196,-500.0,0.00013794,2]
[353043891,1739518240290,-500.0,0.00013794,2]
[353043892,1739518240314,-500.0,0.00013795,2]
[353043893,1739518240324,-500.0,0.00013795,2]
[353043894,1739518240334,-161.611634,0.00013818,5]
[353043895,1739518240343,-705.09511146,0.00013818,2]
[353043896,1739518240353,-8856.51233439,0.00013837,2]
[353043897,1739518240363,-705.09511146,0.00013861,2]
[353043898,1739518240372,-500.0,0.00013871,2]
[353043899,1739518240382,-500.0,0.00013872,2]
[353043900,1739518240392,-500.0,0.00013872,2]
[353043901,1739518240402,-500.0,0.00013872,2]
[353043902,1739518240412,-500.0,0.00013872,2]
[353043903,1739518240422,-534.8,0.00013872,2]
[353043904,1739518240431,-515.96,0.00013872,2]
[353043905,1739518240441,-902.36,0.00013872,2]
[353043906,1739518240450,-500.0,0.00013872,2]
[353043907,1739518240460,-500.0,0.00013872,2]
[353043908,1739518240469,-757.79,0.00013872,2]
[353043909,1739518240479,-500.0,0.00013872,2]
[353043910,1739518240488,-500.0,0.00013872,2]
[353043911,1739518240496,-487.86402531,0.00013872,2]
[353043912,1739518240545,-12.13597469,0.00013872,2]
[353043913,1739518240558,-825.31,0.00013872,2]
[353043914,1739518240568,-500.0,0.00013872,2]
[353043915,1739518240577,-242.62,0.00013872,2]
[353043916,1739518240587,-500.0,0.00013872,2]
[353043917,1739518240598,-500.0,0.00013872,2]
[353043918,1739518240609,-4492.9,0.00013872,2]
[353043919,1739518240619,-500.0,0.00013872,2]
[353043920,1739518240631,-881.52,0.00013872,2]
[353043921,1739518240641,-500.0,0.00013872,2]
[353043922,1739518240651,-1188.02,0.00013872,2]
[353043923,1739518240662,-3226.85,0.00013872,2]
[353043924,1739518240672,-9728.37,0.00013872,2]
[353043925,1739518240681,-2696.82,0.00013872,2]
[353043926,1739518240691,-500.0,0.00013872,2]
[353043927,1739518240701,-945.74,0.00013872,2]
[353043928,1739518240711,-775.04,0.00013872,2]
[353043929,1739518240721,-500.0,0.00013873,2]
[353043930,1739518240731,-500.0,0.00013873,2]
[353043931,1739518240743,-500.0,0.00013873,2]
[353043932,1739518240755,-500.0,0.00013873,2]
[353043933,1739518240766,-363.8,0.00013873,2]
[353043934,1739518240777,-500.0,0.00013873,2]
[353043935,1739518240787,-500.0,0.00013873,2]
[353043936,1739518240797,-504.607933,0.00013873,2]
[353043937,1739518240806,-500.0,0.00013873,2]
[353043938,1739518240817,-500.0,0.00013873,2]
[353043939,1739518240828,-500.0,0.00013873,2]
[353043940,1739518240837,-500.0,0.00013873,2]
[353043941,1739518240847,-500.0,0.00013873,2]
[353043942,1739518240856,-500.0,0.00013874,2]
[353043943,1739518240865,-3000.0,0.00013874,30]
[353043944,1739518240878,-1003.0125707,0.00013874,2]
[353043945,1739518240887,-500.0,0.00013874,2]
[353043946,1739518240898,-500.0,0.00013875,2]
[353043947,1739518240908,-2070.39319788,0.00013893,2]
[353043948,1739518240917,-500.0,0.00013903,2]
[353043949,1739518240927,-705.09511146,0.00013904,2]
[353043950,1739518240939,-500.0,0.00013951,2]
[353043951,1739518240948,-168.25078699,0.00013951,2]
[353043952,1739518240958,-500.0,0.00013951,2]
[353043953,1739518240968,-500.0,0.00013951,2]
[353043954,1739518240979,-565.85580065,0.00013951,2]
[353043955,1739518240991,-500.0,0.00013951,2]
[353043956,1739518241003,-500.0,0.00013951,2]
[353043957,1739518241014,-500.0,0.00013951,2]
[353043958,1739518241023,-500.0,0.00013951,2]
[353043959,1739518241034,-500.0,0.00013951,2]
[353043960,1739518241044,-500.0,0.00013951,2]
[353043961,1739518241053,-500.0,0.00013951,2]
[353043962,1739518241063,-500.0,0.00013951,2]
[353043963,1739518241073,-500.0,0.00013951,2]
[353043964,1739518241082,-500.0,0.00013951,2]
[353043965,1739518241093,-500.0,0.00013951,2]
[353043966,1739518241104,-500.0,0.00013951,2]
[353043967,1739518241113,-500.0,0.00013951,2]
[353043968,1739518241123,-500.0,0.00013951,2]
[353043969,1739518241132,-500.0,0.00013951,2]
[353043970,1739518241142,-199.0,0.00013951,2]
[353043971,1739518241151,-500.0,0.00013951,2]
[353043972,1739518241162,-500.0,0.00013951,2]
[353043973,1739518241171,-500.0,0.00013951,2]
[353043974,1739518241181,-500.0,0.00013951,2]
[353043975,1739518241190,-500.0,0.00013951,2]
[353043976,1739518241199,-500.0,0.00013951,2]
[353043977,1739518241208,-500.0,0.00013951,2]
[353043978,1739518241218,-500.0,0.00013951,2]
[353043979,1739518241227,-500.0,0.00013951,2]
[353043980,1739518241237,-500.0,0.00013951,2]
[353043981,1739518241246,-500.0,0.00013951,2]
[353043982,1739518241257,-500.0,0.00013951,2]
[353043983,1739518241266,-500.0,0.00013951,2]
[353043984,1739518241276,-500.0,0.00013951,2]
[353043985,1739518241286,-500.0,0.00013951,2]
[353043986,1739518241296,-500.0,0.00013951,2]
[353043987,1739518241306,-500.0,0.00013951,2]
[353043988,1739518241315,-500.0,0.00013951,2]
[353043989,1739518241325,-308.68929766,0.00013951,2]
[353043990,1739518241335,-500.0,0.00013951,2]
[353043991,1739518241345,-500.0,0.00013951,2]
[353043992,1739518241355,-500.0,0.00013951,2]
[353043993,1739518241364,-647.63665566,0.00013951,2]
[353043994,1739518241374,-500.0,0.00013951,2]
[353043995,1739518241384,-500.0,0.00013951,2]
[353043996,1739518241393,-500.0,0.00013951,2]
[353043997,1739518241403,-500.0,0.00013951,2]
[353043998,1739518241414,-500.0,0.00013951,2]
[353043999,1739518241424,-500.0,0.00013951,2]
[353044000,1739518241434,-500.0,0.00013951,2]
[353044001,1739518241443,-500.0,0.00013951,2]
[353044002,1739518241452,-500.0,0.00013951,2]
[353044003,1739518241463,-500.0,0.00013951,2]
[353044004,1739518241472,-500.0,0.00013951,2]
[353044005,1739518241482,-500.0,0.00013951,2]
[353044006,1739518241491,-500.0,0.00013951,2]
[353044007,1739518241500,-500.0,0.00013951,2]
[353044008,1739518241510,-500.0,0.00013951,2]
[353044009,1739518241519,-500.0,0.00013951,2]
[353044010,1739518241528,-500.0,0.00013951,2]
[353044011,1739518241541,-500.0,0.00013951,2]
[353044012,1739518241551,-500.0,0.00013951,2]
[353044013,1739518241561,-500.0,0.00013951,2]
[353044014,1739518241570,-500.0,0.00013951,2]
[353044015,1739518241579,-339.39212784,0.00013951,2]
[353044016,1739518241590,-500.0,0.00013951,2]
[353044017,1739518241599,-500.0,0.00013951,2]
[353044018,1739518241609,-500.0,0.00013951,2]
[353044019,1739518241619,-500.0,0.00013951,2]
[353044020,1739518241629,-500.0,0.00013951,2]
[353044021,1739518241639,-500.0,0.00013951,2]
[353044022,1739518241648,-500.0,0.00013951,2]
[353044023,1739518241659,-500.0,0.00013951,2]
[353044024,1739518241668,-500.0,0.00013951,2]
[353044025,1739518241677,-500.0,0.00013951,2]
[353044026,1739518241686,-500.0,0.00013951,2]
[353044027,1739518241696,-500.0,0.00013951,2]
[353044028,1739518241705,-500.0,0.00013951,2]
[353044029,1739518241714,-500.0,0.00013951,2]
[353044030,1739518241724,-500.0,0.00013951,2]
[353044031,1739518241733,-500.0,0.00013951,2]
[353044032,1739518241742,-500.0,0.00013951,2]
[353044033,1739518241751,-500.0,0.00013951,2]
[353044034,1739518241760,-500.0,0.00013951,2]
[353044035,1739518241770,-500.0,0.00013951,2]
[353044036,1739518241779,-500.0,0.00013951,2]
[353044037,1739518241788,-500.0,0.00013951,2]
[353044038,1739518241798,-500.0,0.00013951,2]
[353044039,1739518241807,-500.0,0.00013951,2]
[353044040,1739518241816,-500.0,0.00013951,2]
[353044041,1739518241826,-500.0,0.00013951,2]
[353044042,1739518241835,-500.0,0.00013951,2]
[353044043,1739518241845,-500.0,0.00013951,2]
[353044044,1739518241857,-500.0,0.00013951,2]
[353044045,1739518241868,-602.38433019,0.00013951,2]
[353044046,1739518241879,-500.0,0.00013952,2]
[353044047,1739518241889,-500.0,0.00013952,2]
[353044048,1739518241899,-500.0,0.00013954,2]
[353044049,1739518241910,-500.0,0.00013954,2]
[353044050,1739518241920,-500.0,0.00013954,2]
[353044051,1739518241929,-534.8,0.00013954,2]
[353044052,1739518241939,-902.36,0.00013954,2]
[353044053,1739518241949,-500.0,0.00013954,2]
[353044054,1739518241958,-757.79,0.00013954,2]
[353044055,1739518241969,-500.0,0.00013954,2]
[353044056,1739518241980,-500.0,0.00013954,2]
[353044057,1739518241990,-500.0,0.00013954,2]
[353044058,1739518242002,-825.31,0.00013954,2]
[353044059,1739518242011,-500.0,0.00013954,2]
[353044060,1739518242022,-500.0,0.00013954,2]
[353044061,1739518242033,-500.0,0.00013954,2]
[353044062,1739518242044,-4492.9,0.00013954,2]
[353044063,1739518242054,-500.0,0.00013954,2]
[353044064,1739518242063,-881.52,0.00013954,2]
[353044065,1739518242072,-500.0,0.00013954,2]
[353044066,1739518242082,-1188.02,0.00013954,2]
[353044067,1739518242091,-3226.85,0.00013954,2]
[353044068,1739518242100,-9728.37,0.00013954,2]
[353044069,1739518242109,-2696.82,0.00013954,2]
[353044070,1739518242119,-500.0,0.00013954,2]
[353044071,1739518242129,-945.74,0.00013954,2]
[353044072,1739518242139,-775.04,0.00013954,2]
[353044073,1739518242148,-185.51,0.00013955,2]
[353044074,1739518242157,-514.41520686,0.00013955,2]
[353044075,1739518242167,-500.0,0.00013955,2]
[353044076,1739518242176,-500.0,0.00013955,2]
[353044077,1739518242185,-500.0,0.00013955,2]
[353044078,1739518242195,-267.49617481,0.00013955,2]
[353044079,1739518242204,-500.0,0.00013955,2]
[353044080,1739518242213,-500.0,0.00013956,2]
[353044081,1739518242223,-3000.0,0.00013956,30]
[353044082,1739518242233,-500.0,0.00013958,2]
[353044083,1739518242242,-168.25224142,0.00013973,2]
[353044084,1739518242251,-3236.03455734,0.00013973,2]
[353044085,1739518242261,-1162.34928517,0.00013973,2]
[353044086,1739518242270,-500.0,0.00013976,2]
[353044087,1739518242279,-500.0,0.00013976,2]
[353044088,1739518242289,-500.0,0.00013976,2]
[353044089,1739518242300,-500.0,0.00013977,2]
[353044090,1739518242309,-500.0,0.00013977,2]
[353044091,1739518242318,-500.0,0.00013977,2]
[353044092,1739518242328,-288.88323367,0.00013977,2]
[353044093,1739518242338,-500.0,0.00013977,2]
[353044095,1739518242347,-500.0,0.00013978,2]
[353044096,1739518242358,-500.0,0.00013978,2]
[353044097,1739518242367,-500.0,0.00013978,2]
[353044098,1739518242376,-500.0,0.00013978,2]
[353044099,1739518242387,-3000.0,0.00013979,2]
[353044100,1739518242397,-500.0,0.00013987,2]
[353044101,1739518242407,-9098.33977046,0.00013987,2]
[353044102,1739518242418,-500.0,0.00013993,2]
[353044103,1739518242428,-500.0,0.00013993,2]
[353044105,1739518242438,-175.54904162,0.00013993,2]
[353044106,1739518242449,-9098.33977046,0.00013994,2]
[353044108,1739518242459,-500.0,0.00013994,2]
[353044110,1739518242469,-9098.33977046,0.00013995,2]
[353044112,1739518242479,-151.0,0.00014,2]
[353044114,1739518242488,-151.0,0.00014,2]
[353044116,1739518242497,-14543.0,0.00014,2]
[353044117,1739518242507,-1434.85289272,0.00014,2]
[353044118,1739518242516,-1316.16108051,0.00014,2]
[353044119,1739518242526,-151.0,0.00014,2]
[353044120,1739518242535,-4773.33623602,0.00014,2]
[353044121,1739518242547,-500.0,0.00014035,2]
[353044122,1739518242559,-500.0,0.00014036,2]
[353044123,1739518242569,-500.0,0.00014036,2]
[353044124,1739518242580,-500.0,0.00014036,2]
[353044125,1739518242589,-534.8,0.00014036,2]
[353044126,1739518242599,-902.36,0.00014036,2]
[353044127,1739518242608,-500.0,0.00014036,2]
[353044130,1739518242618,-757.79,0.00014036,2]
[353044132,1739518242630,-500.0,0.00014036,2]
[353044134,1739518242639,-500.0,0.00014036,2]
[353044135,1739518242649,-825.31,0.00014036,2]
[353044136,1739518242660,-500.0,0.00014036,2]
[353044137,1739518242669,-500.0,0.00014036,2]
[353044138,1739518242678,-500.0,0.00014036,2]
[353044139,1739518242688,-4492.9,0.00014036,2]
[353044140,1739518242697,-881.52,0.00014036,2]
[353044141,1739518242706,-500.0,0.00014036,2]
[353044142,1739518242716,-1188.02,0.00014036,2]
[353044143,1739518242725,-3226.85,0.00014036,2]
[353044144,1739518242735,-9728.37,0.00014036,2]
[353044145,1739518242744,-2696.82,0.00014036,2]
[353044146,1739518242756,-500.0,0.00014036,2]
[353044147,1739518242767,-945.74,0.00014036,2]
[353044148,1739518242778,-775.04,0.00014036,2]
[353044149,1739518242788,-500.0,0.00014037,2]
[353044150,1739518242799,-500.0,0.00014038,2]
[353044152,1739518242810,-500.0,0.00014038,2]
[353044153,1739518242819,-500.0,0.00014038,2]
[353044154,1739518242912,-500.0,0.00014039,2]
[353044155,1739518242933,-3000.0,0.00014039,30]
[353044156,1739518242943,-388.72442631,0.00014067,2]
[353044157,1739518242953,-436.99,0.00014068,2]
[353044158,1739518242963,-270.92709721,0.00014069,2]
[353044159,1739518242972,-500.0,0.00014069,2]
[353044160,1739518242982,-500.0,0.00014069,2]
[353044161,1739518242991,-302.32635846,0.00014069,2]
[353044162,1739518243002,-500.0,0.00014069,2]
[353044163,1739518243012,-500.0,0.00014069,2]
[353044164,1739518243021,-500.0,0.00014069,2]
[353044165,1739518243030,-160.0,0.00014069,2]
[353044166,1739518243039,-1448.41799054,0.0001407,5]
[353044167,1739518243049,-1653461.73668274,0.0001407,5]
[353044170,1739518243250,-705.09511146,0.00013946,2]
[353044171,1739518243260,-268.46799463,0.0001407,5]
[353044172,1739518243272,-203.07655042,0.0001407,5]
[353044173,1739518243282,-893.80944958,0.0001407,5]
[353044209,1739519432182,-162.582494,0.00010685,2]
[353044210,1739519432193,-482.05946098,0.00013515,2]
[353044211,1739519432203,-65.53184504,0.00013688,2]
[353044212,1739519432231,-105.37226317,0.00013688,2]
[353044213,1739519432240,-219.51082567,0.00013689,2]
[353044214,1739519432250,-219.51082567,0.00013759,2]
[353044215,1739519432259,-529.92,0.00013786,2]
[353044216,1739519432270,-358.04821648,0.00013786,2]
[353044217,1739519432279,-500.0,0.00013786,2]
[353044218,1739519432289,-22.02786901,0.00013786,2]
[353044219,1739519432304,-277.97213099,0.00013786,2]
[353044220,1739519432313,-500.0,0.00013787,2]
[353044221,1739519432323,-500.0,0.00013787,2]
[353044222,1739519432331,-500.0,0.00013787,2]
[353044223,1739519432341,-2357.26724455,0.00013787,2]
[353044224,1739519432356,-1863.48275545,0.00013787,2]
[353044225,1739519432366,-1299.59,0.00013787,2]
[353044226,1739519432376,-500.0,0.00013787,2]
[353044227,1739519432385,-500.0,0.00013787,2]
[353044228,1739519432395,-500.0,0.00013787,2]
[353044229,1739519432404,-500.0,0.00013787,2]
[353044230,1739519432413,-500.0,0.00013787,2]
[353044231,1739519432423,-500.0,0.00013787,2]
[353044233,1739519432432,-567.32,0.00013787,2]
[353044234,1739519432441,-500.0,0.00013787,2]
[353044235,1739519432451,-1525.02,0.00013787,2]
[353044236,1739519432460,-1525.02,0.00013787,2]
[353044237,1739519432472,-808.22,0.00013787,2]
[353044238,1739519432482,-2066.38,0.00013787,2]
[353044239,1739519432491,-500.0,0.00013787,2]
[353044240,1739519432501,-500.0,0.00013787,2]
[353044241,1739519432510,-500.0,0.00013787,2]
[353044242,1739519432520,-949.92,0.00013787,2]
[353044243,1739519432530,-1081.05,0.00013787,2]
[353044244,1739519432539,-500.0,0.00013787,2]
[353044245,1739519432548,-500.0,0.00013787,2]
[353044246,1739519432559,-398.23614346,0.00013787,2]
[353044247,1739519432568,-500.0,0.00013787,2]
[353044248,1739519432577,-500.0,0.00013787,2]
[353044249,1739519432588,-500.0,0.00013787,2]
[353044250,1739519432597,-500.0,0.00013787,2]
[353044251,1739519432606,-184.09803848,0.00013787,2]
[353044252,1739519432615,-500.0,0.00013787,2]
[353044253,1739519432625,-523.67543609,0.00013787,2]
[353044254,1739519432635,-5878.2,0.00013787,2]
[353044255,1739519432644,-500.0,0.00013787,2]
[353044256,1739519432653,-1398.31,0.00013787,2]
[353044257,1739519432663,-500.0,0.00013787,2]
[353044258,1739519432672,-500.0,0.00013787,2]
[353044259,1739519432683,-500.0,0.00013787,2]
[353044260,1739519432692,-500.0,0.00013787,2]
[353044261,1739519432701,-373.03,0.00013787,2]
[353044262,1739519432710,-500.0,0.00013787,2]
[353044263,1739519432721,-501.14127728,0.00013787,2]
[353044264,1739519432730,-500.0,0.00013787,2]
[353044265,1739519432740,-500.49735907,0.00013787,2]
[353044266,1739519432750,-500.0,0.00013787,2]
[353044267,1739519432759,-500.0,0.00013787,2]
[353044268,1739519432768,-500.0,0.00013787,2]
[353044269,1739519432777,-500.41712922,0.00013787,2]
[353044270,1739519432786,-500.0,0.00013787,2]
[353044271,1739519432795,-500.0,0.00013787,2]
[353044272,1739519432804,-500.0,0.00013787,2]
[353044273,1739519432814,-1220.9,0.00013787,2]
[353044274,1739519432823,-500.0,0.00013787,2]
[353044275,1739519432832,-500.70876824,0.00013787,2]
[353044276,1739519432841,-475.23499271,0.00013787,2]
[353044277,1739519432850,-500.0,0.00013787,2]
[353044278,1739519432860,-500.0,0.00013787,2]
[353044279,1739519432871,-500.56077539,0.00013787,2]
[353044280,1739519432883,-500.0,0.00013787,2]
[353044281,1739519432894,-1130.26,0.00013787,2]
[353044282,1739519432904,-500.0,0.00013787,2]
[353044283,1739519432915,-597.73493194,0.00013787,2]
[353044284,1739519432925,-500.0,0.00013787,2]
[353044285,1739519432934,-500.4972353,0.00013787,2]
[353044286,1739519432944,-231.80777619,0.00013787,2]
[353044287,1739519432956,-500.0,0.00013787,2]
[353044288,1739519432967,-500.0,0.00013787,2]
[353044289,1739519432976,-2894.51,0.00013787,2]
[353044290,1739519432985,-500.0,0.00013788,2]
[353044291,1739519432994,-500.0,0.00013788,2]
[353044292,1739519433004,-500.0,0.00013788,2]
[353044293,1739519433013,-500.0,0.00013788,2]
[353044294,1739519433023,-500.0,0.00013788,2]
[353044295,1739519433034,-500.0,0.00013788,2]
[353044296,1739519433043,-500.0,0.00013788,2]
[353044297,1739519433053,-500.0,0.00013788,2]
[353044298,1739519433062,-500.0,0.00013788,2]
[353044299,1739519433187,-500.0,0.00013788,2]
[353044300,1739519433198,-288.88323367,0.00013788,2]
[353044301,1739519433209,-500.0,0.00013788,2]
[353044302,1739519433219,-500.0,0.00013788,2]
[353044303,1739519433230,-3131.11,0.00013788,2]
[353044304,1739519433241,-500.0,0.00013788,2]
[353044305,1739519433251,-500.0,0.00013788,2]
[353044306,1739519433261,-13180.29,0.00013788,2]
[353044307,1739519433272,-500.0,0.00013788,2]
[353044308,1739519433282,-500.0,0.00013788,2]
[353044309,1739519433293,-500.0,0.00013788,2]
[353044310,1739519433302,-500.0,0.00013788,2]
[353044311,1739519433311,-500.0,0.00013788,2]
[353044312,1739519433320,-1525.02,0.00013788,2]
[353044313,1739519433330,-1525.02,0.00013788,2]
[353044314,1739519433340,-1525.02,0.00013788,2]
[353044315,1739519433349,-1525.02,0.00013788,2]
[353044316,1739519433359,-1525.02,0.00013788,2]
[353044317,1739519433368,-500.0,0.00013788,2]
[353044318,1739519433378,-500.0,0.00013788,2]
[353044319,1739519433387,-502.12792052,0.00013788,2]
[353044320,1739519433397,-500.0,0.00013788,2]
[353044321,1739519433406,-501.65217109,0.00013788,2]
[353044322,1739519433415,-500.69067806,0.00013788,2]
[353044323,1739519433425,-501.41474377,0.00013788,2]
[353044324,1739519433435,-500.0,0.00013788,2]
[353044325,1739519433445,-500.0,0.00013788,2]
[353044326,1739519433454,-500.65055662,0.00013788,2]
[353044327,1739519433464,-500.0,0.00013788,2]
[353044328,1739519433474,-500.0,0.00013788,2]
[353044329,1739519433483,-500.0,0.00013788,2]
[353044330,1739519433493,-500.0,0.00013788,2]
[353044331,1739519433504,-500.0,0.00013788,2]
[353044332,1739519433514,-500.0,0.00013788,2]
[353044333,1739519433523,-500.0,0.00013788,2]
[353044334,1739519433533,-500.0,0.00013788,2]
[353044335,1739519433543,-500.0,0.00013789,2]
[353044336,1739519433553,-500.0,0.00013789,2]
[353044337,1739519433562,-500.0,0.00013789,2]
[353044338,1739519433572,-3000.0,0.00013789,30]
[353044339,1739519433582,-500.0,0.00013789,2]
[353044340,1739519433591,-500.0,0.00013789,2]
[353044341,1739519433601,-501.89961858,0.00013789,2]
[353044342,1739519433611,-213.96652276,0.00013789,2]
[353044343,1739519433621,-500.0,0.00013789,2]
[353044344,1739519433630,-500.0,0.00013789,2]
[353044345,1739519433640,-418.03905723,0.00013789,2]
[353044346,1739519433650,-500.0,0.00013789,2]
[353044347,1739519433659,-500.0,0.00013789,2]
[353044348,1739519433669,-500.0,0.00013789,2]
[353044349,1739519433679,-500.0,0.00013789,2]
[353044350,1739519433688,-501.90547418,0.00013789,2]
[353044351,1739519433698,-500.0,0.00013789,2]
[353044352,1739519433707,-500.0,0.00013789,2]
[353044353,1739519433716,-500.0,0.00013789,2]
[353044354,1739519433726,-346.59434901,0.00013789,2]
[353044355,1739519433736,-504.59988527,0.00013789,2]
[353044356,1739519433745,-500.0,0.00013789,2]
[353044357,1739519433755,-500.0,0.00013789,2]
[353044358,1739519433764,-500.0,0.00013789,2]
[353044359,1739519433773,-500.0,0.00013789,2]